lending/lending_fUSD_20250808
["ID","MTS","AMOUNT","RATE_DAILY","PERIOD"]
[377953209,1754626268947,-419.61,0.00019708,2]
[377953210,1754626268957,-400.0,0.00019708,2]
[377953211,1754626268967,-400.0,0.00019708,2]
[377953212,1754626268977,-400.0,0.00019708,2]
[377953213,1754626268990,-1041.24,0.00019708,2]
[377953214,1754626268999,-895.39,0.00019708,2]
[377953215,1754626269009,-450.17,0.00019708,2]
[377953216,1754626269019,-736.83,0.00019708,2]
[377953217,1754626269029,-400.0,0.00019708,2]
[377953218,1754626269039,-400.0,0.00019708,2]
[377953219,1754626269049,-1388.68,0.00019708,2]
[377953220,1754626269059,-404.77,0.00019708,2]
[377953221,1754626269069,-726.4,0.00019708,2]
[377953222,1754626269079,-1109.46,0.00019708,2]
[377953223,1754626269088,-434.65,0.00019708,2]
[377953224,1754626269099,-1391.01,0.00019708,2]
[377953225,1754626269108,-962.32,0.00019708,2]
[377953226,1754626269117,-866.44,0.00019708,2]
[377953227,1754626269126,-400.0,0.00019708,2]
[377953228,1754626269135,-714.0,0.00019708,2]
[377953229,1754626269145,-400.0,0.00019708,2]
[377953230,1754626269154,-715.91,0.00019708,2]
[377953231,1754626269163,-400.0,0.00019708,2]
[377953232,1754626269173,-1033.08,0.00019708,2]
[377953233,1754626269377,-812.69,0.00019708,2]
[377953234,1754626269387,-1441.14,0.00019708,2]
[377953235,1754626269398,-654.63,0.00019708,2]
[377953236,1754626269407,-400.0,0.00019708,2]
[377953237,1754626269417,-705.25,0.00019708,2]
[377953238,1754626269427,-852.53,0.00019708,2]
[377953239,1754626269437,-797.14,0.00019708,2]
[377953240,1754626269446,-1115.11,0.00019708,2]
[377953241,1754626269455,-400.0,0.00019708,2]
[377953242,1754626269464,-400.0,0.00019708,2]
[377953243,1754626269474,-401.75,0.00019708,2]
[377953244,1754626269483,-796.7,0.00019708,2]
[377953245,1754626269493,-1347.39,0.00019708,2]
[377953246,1754626269502,-457.46,0.00019708,2]
[377953247,1754626269511,-407.39,0.00019708,2]
[377953248,1754626269521,-673.14,0.00019708,2]
[377953249,1754626269531,-1822.34,0.00019708,2]
[377953250,1754626269540,-1270.48,0.00019708,2]
[377953251,1754626269549,-400.0,0.00019708,2]
[377953252,1754626269558,-400.0,0.00019708,2]
[377953253,1754626269567,-1002.76,0.00019708,2]
[377953254,1754626269576,-400.0,0.00019708,2]
[377953255,1754626269586,-890.13,0.00019708,2]
[377953256,1754626269595,-644.35,0.00019708,2]
[377953257,1754626269606,-409.25,0.00019708,2]
[377953258,1754626269615,-1245.67,0.00019708,2]
[377953259,1754626269625,-2043.21,0.00019708,2]
[377953260,1754626269634,-400.0,0.00019708,2]
[377953261,1754626269644,-2233.71,0.00019708,2]
[377953262,1754626269653,-741.24,0.00019708,2]
[377953263,1754626269662,-1155.63,0.00019708,2]
[377953264,1754626269671,-400.0,0.00019708,2]
[377953265,1754626269681,-1047.2,0.00019708,2]
[377953266,1754626269690,-514.46,0.00019708,2]
[377953267,1754626269700,-489.77,0.00019708,2]
[377953268,1754626269709,-400.0,0.00019708,2]
[377953269,1754626269718,-400.0,0.00019708,2]
[377953270,1754626269727,-695.7,0.00019708,2]
[377953271,1754626269737,-426.22,0.00019708,2]
[377953272,1754626269747,-400.0,0.00019708,2]
[377953273,1754626269756,-400.0,0.00019708,2]
[377953274,1754626269765,-637.06,0.00019708,2]
[377953275,1754626269775,-555.42,0.00019708,2]
[377953276,1754626269784,-400.0,0.00019708,2]
[377953277,1754626269794,-423.0,0.00019708,2]
[377953278,1754626269804,-469.28,0.00019708,2]
[377953279,1754626269813,-1209.56,0.00019708,2]
[377953280,1754626269823,-896.1,0.00019708,2]
[377953281,1754626269832,-400.0,0.00019708,2]
[377953282,1754626269841,-400.0,0.00019708,2]
[377953283,1754626269851,-400.0,0.00019708,2]
[377953284,1754626269860,-400.0,0.00019709,2]
[377953285,1754626269870,-400.0,0.00019709,2]
[377953286,1754626269880,-714.82,0.00019709,2]
[377953287,1754626269889,-400.0,0.00019709,2]
[377953288,1754626269899,-559.3,0.00019709,2]
[377953289,1754626269912,-461.32,0.00019709,2]
[377953290,1754626269922,-400.0,0.00019709,2]
[377953291,1754626269931,-400.0,0.00019709,2]
[377953292,1754626269940,-667.25,0.00019709,2]
[377953293,1754626269950,-400.0,0.00019709,2]
[377953294,1754626269960,-835.61,0.00019709,2]
[377953295,1754626269969,-400.0,0.00019709,2]
[377953296,1754626269978,-646.3,0.00019709,2]
[377953297,1754626269988,-400.0,0.00019709,2]
[377953298,1754626269997,-400.0,0.00019709,2]
[377953299,1754626270007,-561.42,0.00019709,2]
[377953300,1754626270016,-508.98,0.00019709,2]
[377953301,1754626270025,-400.0,0.00019709,2]
[377953302,1754626270034,-400.0,0.00019709,2]
[377953303,1754626270043,-490.6,0.00019709,2]
[377953304,1754626270052,-400.0,0.00019709,2]
[377953305,1754626270061,-400.0,0.00019709,2]
[377953306,1754626270070,-709.98,0.00019709,2]
[377953307,1754626270079,-777.73,0.00019709,2]
[377953308,1754626270089,-151.0,0.00019709,2]
[377953309,1754626270099,-400.0,0.00019709,2]
[377953310,1754626270108,-520.41,0.00019709,2]
[377953311,1754626270117,-517.16,0.00019709,2]
[377953312,1754626270127,-400.0,0.00019709,2]
[377953313,1754626270137,-403.15447635,0.00019709,2]
[377953314,1754626270146,-774.37,0.00019709,2]
[377953315,1754626270155,-745.25,0.00019709,2]
[377953316,1754626270164,-680.99,0.00019709,2]
[377953317,1754626270173,-451.47547473,0.00019709,2]
[377953318,1754626270182,-400.0,0.00019709,2]
[377953319,1754626270191,-400.0,0.00019709,2]
[377953320,1754626270199,-400.0,0.00019709,2]
[377953321,1754626270209,-400.0,0.00019709,2]
[377953322,1754626270218,-400.0,0.00019709,2]
[377953323,1754626270227,-400.0,0.00019709,2]
[377953324,1754626270236,-400.0,0.00019709,2]
[377953325,1754626270246,-400.0,0.00019709,2]
[377953326,1754626270255,-654.32,0.00019709,2]
[377953327,1754626270264,-475.66,0.00019709,2]
[377953328,1754626270273,-400.0,0.00019709,2]
[377953329,1754626270282,-400.0,0.00019709,2]
[377953330,1754626270292,-661.22,0.00019709,2]
[377953331,1754626270301,-437.00350667,0.00019709,2]
[377953332,1754626270310,-288.51,0.00019709,2]
[377953333,1754626270319,-461.62,0.00019709,2]
[377953334,1754626270328,-546.3,0.00019709,2]
[377953335,1754626270337,-792.57,0.00019709,2]
[377953336,1754626270347,-493.31,0.00019709,2]
[377953337,1754626270355,-251.56234756,0.00019709,2]
[377953338,1754626270365,-580.1,0.00019709,2]
[377953339,1754626270374,-400.0,0.00019709,2]
[377953340,1754626270383,-431.68,0.00019709,2]
[377953341,1754626270392,-400.0,0.00019709,2]
[377953342,1754626270401,-762.35,0.00019709,2]
[377953343,1754626270410,-400.0,0.00019709,2]
[377953344,1754626270419,-404.32,0.00019709,2]
[377953345,1754626270430,-400.0,0.00019709,2]
[377953346,1754626270440,-400.0,0.00019709,2]
[377953347,1754626270450,-409.42,0.00019709,2]
[377953348,1754626270461,-400.0,0.00019709,2]
[377953349,1754626270472,-400.0,0.00019709,2]
[377953350,1754626270480,-881.9,0.00019709,2]
[377953351,1754626270490,-400.0,0.00019709,2]
[377953352,1754626270499,-402.69,0.00019709,2]
[377953353,1754626270509,-708.23,0.00019709,2]
[377953354,1754626270519,-400.0,0.00019709,2]
[377953355,1754626270530,-1153.5,0.00019709,2]
[377953356,1754626270539,-457.97,0.00019709,2]
[377953357,1754626270548,-400.0,0.00019709,2]
[377953358,1754626270557,-427.35,0.00019709,2]
[377953359,1754626270567,-400.0,0.00019709,2]
[377953360,1754626270576,-400.0,0.00019709,2]
[377953361,1754626270587,-400.0,0.00019709,2]
[377953362,1754626270596,-753.04,0.00019709,2]
[377953363,1754626270607,-1025.45,0.00019709,2]
[377953364,1754626270617,-400.0,0.00019709,2]
[377953365,1754626270626,-400.0,0.00019709,2]
[377953366,1754626270636,-400.0,0.00019709,2]
[377953367,1754626270647,-400.0,0.00019709,2]
[377953368,1754626270656,-639.19,0.00019709,2]
[377953369,1754626270665,-400.0,0.00019709,2]
[377953370,1754626270681,-400.0,0.00019709,2]
[377953371,1754626270699,-400.0,0.00019709,2]
[377953372,1754626270709,-400.0,0.00019709,2]
[377953373,1754626270719,-516.92,0.00019709,2]
[377953374,1754626270731,-595.18,0.00019709,2]
[377953375,1754626270741,-400.0,0.00019709,2]
[377953376,1754626270750,-1035.95,0.00019709,2]
[377953377,1754626270760,-779.19,0.00019709,2]
[377953378,1754626270770,-400.0,0.00019709,2]
[377953379,1754626270780,-400.0,0.00019709,2]
[377953380,1754626270789,-400.0,0.00019709,2]
[377953381,1754626270798,-1327.47,0.00019709,2]
[377953382,1754626270808,-400.0,0.00019709,2]
[377953383,1754626270819,-984.12,0.00019709,2]
[377953384,1754626270829,-400.0,0.00019709,2]
[377953385,1754626270839,-400.0,0.00019709,2]
[377953386,1754626270848,-667.27,0.00019709,2]
[377953387,1754626270858,-400.0,0.00019709,2]
[377953388,1754626270867,-400.0,0.00019709,2]
[377953389,1754626270877,-656.52,0.00019709,2]
[377953390,1754626270887,-413.21,0.00019709,2]
[377953391,1754626270898,-400.0,0.00019709,2]
[377953392,1754626270913,-400.0,0.00019709,2]
[377953393,1754626270923,-611.55,0.00019709,2]
[377953394,1754626270933,-619.46,0.00019709,2]
[377953395,1754626270942,-1041.04,0.00019709,2]
[377953396,1754626270951,-927.35,0.00019709,2]
[377953397,1754626270962,-400.0,0.00019709,2]
[377953398,1754626270971,-642.29,0.00019709,2]
[377953399,1754626270981,-450.11,0.00019709,2]
[377953400,1754626270990,-400.0,0.00019709,2]
[377953401,1754626271001,-400.0,0.00019709,2]
[377953402,1754626271010,-400.0,0.00019709,2]
[377953403,1754626271019,-400.0,0.00019709,2]
[377953404,1754626271029,-637.14,0.00019709,2]
[377953405,1754626271038,-400.0,0.00019709,2]
[377953406,1754626271047,-400.0,0.00019709,2]
[377953407,1754626271056,-400.0,0.00019709,2]
[377953408,1754626271066,-400.0,0.00019709,2]
[377953409,1754626271076,-493.46,0.00019709,2]
[377953410,1754626271085,-400.0,0.00019709,2]
[377953411,1754626271095,-429.69,0.00019709,2]
[377953412,1754626271106,-421.71,0.00019709,2]
[377953413,1754626271116,-400.0,0.00019709,2]
[377953414,1754626271126,-517.66,0.00019709,2]
[377953415,1754626271136,-400.0,0.00019709,2]
[377953416,1754626271146,-400.0,0.00019709,2]
[377953417,1754626271159,-465.15,0.00019709,2]
[377953418,1754626271170,-400.0,0.00019709,2]
[377953419,1754626271180,-678.98,0.00019709,2]
[377953420,1754626271189,-400.0,0.00019709,2]
[377953421,1754626271199,-1384.81,0.00019709,2]
[377953422,1754626271209,-996.67,0.00019709,2]
[377953423,1754626271219,-571.51,0.00019709,2]
[377953424,1754626271228,-400.0,0.00019709,2]
[377953425,1754626271238,-722.09,0.00019709,2]
[377953426,1754626271247,-400.0,0.00019709,2]
[377953427,1754626271256,-593.69,0.00019709,2]
[377953428,1754626271266,-400.0,0.00019709,2]
[377953429,1754626271275,-400.0,0.00019709,2]
[377953430,1754626271285,-1728.68,0.00019709,2]
[377953431,1754626271294,-400.0,0.00019709,2]
[377953432,1754626271304,-400.0,0.00019709,2]
[377953433,1754626271313,-715.63,0.00019709,2]
[377953434,1754626271322,-151.0,0.00019709,2]
[377953435,1754626271331,-400.0,0.00019709,2]
[377953436,1754626271340,-400.0,0.00019709,2]
[377953437,1754626271350,-400.0,0.00019709,2]
[377953438,1754626271358,-641.91,0.00019709,2]
[377953439,1754626271367,-891.24,0.00019709,2]
[377953440,1754626271376,-400.0,0.00019709,2]
[377953441,1754626271385,-406.1,0.00019709,2]
[377953442,1754626271394,-934.12,0.00019709,2]
[377953443,1754626271403,-934.46,0.00019709,2]
[377953444,1754626271413,-400.0,0.00019709,2]
[377953445,1754626271422,-670.4,0.00019709,2]
[377953446,1754626271431,-674.87,0.00019709,2]
[377953447,1754626271440,-1307.54,0.00019709,2]
[377953448,1754626271449,-400.0,0.00019709,2]
[377953449,1754626271458,-804.47,0.00019709,2]
[377953450,1754626271468,-400.0,0.00019709,2]
[377953451,1754626271477,-510.06,0.00019709,2]
[377953452,1754626271486,-937.03,0.00019709,2]
[377953453,1754626271495,-400.0,0.00019709,2]
[377953454,1754626271505,-812.93,0.00019709,2]
[377953455,1754626271514,-861.49,0.00019709,2]
[377953456,1754626271523,-400.0,0.00019709,2]
[377953457,1754626271532,-400.0,0.00019709,2]
[377953458,1754626271541,-552.22,0.00019709,2]
[377953459,1754626271551,-400.0,0.00019709,2]
[377953460,1754626271560,-486.11,0.00019709,2]
[377953461,1754626271569,-1786.72,0.00019709,2]
[377953462,1754626271578,-606.4,0.00019709,2]
[377953463,1754626271588,-810.48,0.00019709,2]
[377953464,1754626271597,-400.0,0.00019709,2]
[377953465,1754626271606,-809.54,0.00019709,2]
[377953466,1754626271615,-911.31,0.00019709,2]
[377953467,1754626271625,-437.41,0.00019709,2]
[377953468,1754626271634,-992.26,0.00019709,2]
[377953469,1754626271643,-934.15,0.00019709,2]
[377953470,1754626271652,-400.0,0.00019709,2]
[377953471,1754626271662,-775.57,0.00019709,2]
[377953472,1754626271671,-400.0,0.00019709,2]
[377953473,1754626271680,-451.59,0.00019709,2]
[377953474,1754626271690,-1104.9,0.00019709,2]
[377953475,1754626271701,-400.0,0.00019709,2]
[377953476,1754626271711,-400.0,0.00019709,2]
[377953477,1754626271722,-400.0,0.00019709,2]
[377953478,1754626271731,-703.85,0.00019709,2]
[377953479,1754626271740,-734.03,0.00019709,2]
[377953480,1754626271749,-759.22,0.00019709,2]
[377953481,1754626271759,-670.41,0.00019709,2]
[377953482,1754626271768,-618.57,0.00019709,2]
[377953483,1754626271778,-985.82,0.00019709,2]
[377953484,1754626271787,-582.68,0.00019709,2]
[377953485,1754626271797,-549.5,0.00019709,2]
[377953486,1754626271806,-400.0,0.00019709,2]
[377953487,1754626271815,-555.26,0.00019709,2]
[377953488,1754626271825,-1182.91,0.00019709,2]
[377953489,1754626271834,-400.0,0.00019709,2]
[377953490,1754626271844,-443.35,0.00019709,2]
[377953491,1754626271854,-836.26,0.00019709,2]
[377953492,1754626271863,-400.0,0.00019709,2]
[377953493,1754626271873,-489.93,0.00019709,2]
[377953494,1754626271883,-400.0,0.00019709,2]
[377953495,1754626271892,-986.57,0.00019709,2]
[377953496,1754626271902,-506.93,0.00019709,2]
[377953497,1754626271915,-400.0,0.00019709,2]
[377953498,1754626271924,-477.62,0.00019709,2]
[377953499,1754626271934,-853.89,0.00019709,2]
[377953500,1754626271943,-735.98,0.00019709,2]
[377953501,1754626271953,-400.0,0.00019709,2]
[377953502,1754626271963,-400.0,0.00019709,2]
[377953503,1754626271972,-400.0,0.00019709,2]
[377953504,1754626271984,-444.13,0.00019709,2]
[377953505,1754626271994,-400.0,0.00019709,2]
[377953506,1754626272003,-809.01,0.00019709,2]
[377953507,1754626272013,-409.63,0.00019709,2]
[377953508,1754626272022,-420.03,0.00019709,2]
[377953509,1754626272032,-1202.24,0.00019709,2]
[377953510,1754626272041,-1244.59,0.00019709,2]
[377953511,1754626272052,-477.58,0.00019709,2]
[377953512,1754626272062,-667.42,0.00019709,2]
[377953513,1754626272071,-536.9,0.00019709,2]
[377953514,1754626272081,-425.93,0.00019709,2]
[377953515,1754626272092,-400.19,0.00019709,2]
[377953516,1754626272102,-400.0,0.00019709,2]
[377953517,1754626272112,-1284.7,0.00019709,2]
[377953518,1754626272121,-418.72054084,0.00019709,2]
[377953519,1754626272130,-775.37,0.00019709,2]
[377953520,1754626272139,-1151.55,0.00019709,2]
[377953521,1754626272148,-400.0,0.00019709,2]
[377953522,1754626272158,-400.0,0.00019709,2]
[377953523,1754626272167,-534.03,0.00019709,2]
[377953524,1754626272176,-1784.76,0.00019709,2]
[377953525,1754626272186,-538.24,0.00019709,2]
[377953526,1754626272195,-410.88825364,0.00019709,2]
[377953527,1754626272205,-465.41,0.00019709,2]
[377953528,1754626272214,-585.27,0.00019709,2]
[377953529,1754626272224,-400.0,0.00019709,2]
[377953530,1754626272234,-400.0,0.00019709,2]
[377953531,1754626272243,-400.0,0.00019709,2]
[377953532,1754626272253,-727.75,0.00019709,2]
[377953533,1754626272263,-814.66,0.00019709,2]
[377953534,1754626272272,-576.73,0.00019709,2]
[377953535,1754626272282,-510.17,0.00019709,2]
[377953536,1754626272291,-753.91,0.00019709,2]
[377953537,1754626272300,-400.0,0.00019709,2]
[377953538,1754626272309,-400.0,0.00019709,2]
[377953539,1754626272319,-417.82,0.00019709,2]
[377953540,1754626272328,-1488.58,0.00019709,2]
[377953541,1754626272338,-1282.89,0.00019709,2]
[377953542,1754626272347,-945.35,0.00019709,2]
[377953543,1754626272357,-400.0,0.00019709,2]
[377953544,1754626272367,-481.49746509,0.00019709,2]
[377953545,1754626272376,-589.45,0.00019709,2]
[377953546,1754626272386,-413.86,0.00019709,2]
[377953547,1754626272395,-400.0,0.00019709,2]
[377953548,1754626272405,-400.0,0.00019709,2]
[377953549,1754626272415,-400.0,0.00019709,2]
[377953550,1754626272425,-1386.59,0.00019709,2]
[377953551,1754626272434,-848.67,0.00019709,2]
[377953552,1754626272443,-400.0,0.00019709,2]
[377953553,1754626272453,-400.0,0.00019709,2]
[377953554,1754626272463,-158.22002213,0.00019709,2]
[377953555,1754626272473,-1078.51,0.00019709,2]
[377953556,1754626272482,-1156.26,0.00019709,2]
[377953557,1754626272492,-764.62,0.00019709,2]
[377953558,1754626272501,-400.0,0.00019709,2]
[377953559,1754626272511,-497.98,0.00019709,2]
[377953560,1754626272520,-398.39021836,0.00019709,2]
[377953561,1754626272530,-400.0,0.00019709,2]
[377953562,1754626272539,-400.0,0.00019709,2]
[377953563,1754626272549,-853.67,0.00019709,2]
[377953564,1754626272559,-1273.55,0.00019709,2]
[377953565,1754626272569,-400.0,0.00019709,2]
[377953566,1754626272579,-400.0,0.00019709,2]
[377953567,1754626272588,-1298.91,0.00019709,2]
[377953568,1754626272597,-400.0,0.00019709,2]
[377953569,1754626272607,-467.79,0.00019709,2]
[377953570,1754626272617,-400.0,0.00019709,2]
[377953571,1754626272626,-1383.74,0.00019709,2]
[377953572,1754626272636,-1126.68,0.00019709,2]
[377953573,1754626272646,-911.53,0.00019709,2]
[377953574,1754626272655,-400.0,0.00019709,2]
[377953575,1754626272664,-856.18,0.00019709,2]
[377953576,1754626272674,-874.75,0.00019709,2]
[377953577,1754626272684,-828.88,0.00019709,2]
[377953578,1754626272693,-484.52,0.00019709,2]
[377953579,1754626272703,-400.0,0.00019709,2]
[377953580,1754626272712,-494.89892147,0.00019709,2]
[377953581,1754626272722,-790.9,0.00019709,2]
[377953582,1754626272732,-612.6,0.00019709,2]
[377953583,1754626272741,-1042.45,0.00019709,2]
[377953584,1754626272751,-884.96,0.00019709,2]
[377953585,1754626272761,-400.0,0.00019709,2]
[377953586,1754626272770,-400.0,0.00019709,2]
[377953587,1754626272780,-400.0,0.00019709,2]
[377953588,1754626272789,-796.87,0.00019709,2]
[377953589,1754626272799,-1229.15,0.00019709,2]
[377953590,1754626272809,-832.99,0.00019709,2]
[377953591,1754626272819,-843.04,0.00019709,2]
[377953592,1754626272828,-400.0,0.00019709,2]
[377953593,1754626272837,-994.14,0.00019709,2]
[377953594,1754626272846,-400.0,0.00019709,2]
[377953595,1754626272856,-400.0,0.00019709,2]
[377953596,1754626272865,-1122.85,0.00019709,2]
[377953597,1754626272875,-400.0,0.00019709,2]
[377953598,1754626272884,-401.13,0.00019709,2]
[377953599,1754626272893,-989.94,0.00019709,2]
[377953600,1754626272904,-456.89,0.00019709,2]
[377953601,1754626272915,-400.0,0.00019709,2]
[377953602,1754626272925,-711.37,0.00019709,2]
[377953603,1754626272934,-1077.94,0.00019709,2]
[377953604,1754626272943,-483.29,0.00019709,2]
[377953605,1754626272953,-737.86,0.00019709,2]
[377953606,1754626272962,-489.42,0.00019709,2]
[377953607,1754626272971,-1186.63,0.00019709,2]
[377953608,1754626272982,-407.50562857,0.00019709,2]
[377953609,1754626272992,-840.07,0.00019709,2]
[377953610,1754626273001,-1405.89,0.00019709,2]
[377953611,1754626273010,-868.16,0.00019709,2]
[377953612,1754626273020,-400.0,0.00019709,2]
[377953613,1754626273029,-624.03,0.00019709,2]
[377953614,1754626273038,-583.58,0.00019709,2]
[377953615,1754626273047,-400.0,0.00019709,2]
[377953616,1754626273057,-400.0,0.00019709,2]
[377953617,1754626273065,-433.48161212,0.00019709,2]
[377953618,1754626273074,-726.17,0.00019709,2]
[377953619,1754626273084,-782.71,0.00019709,2]
[377953620,1754626273094,-1539.75,0.00019709,2]
[377953621,1754626273104,-666.65,0.00019709,2]
[377953622,1754626273113,-1193.78,0.00019709,2]
[377953623,1754626273122,-400.0,0.00019709,2]
[377953624,1754626273132,-871.27,0.00019709,2]
[377953625,1754626273141,-607.63,0.00019709,2]
[377953626,1754626273150,-400.0,0.00019709,2]
[377953627,1754626273160,-400.0,0.00019709,2]
[377953628,1754626273169,-777.45,0.00019709,2]
[377953629,1754626273178,-400.0,0.00019709,2]
[377953630,1754626273188,-342.22789927,0.00019709,2]
[377953631,1754626273197,-400.0,0.00019709,2]
[377953632,1754626273207,-400.37,0.00019709,2]
[377953633,1754626273217,-738.12,0.00019709,2]
[377953634,1754626273227,-400.0,0.00019709,2]
[377953635,1754626273236,-427.97,0.00019709,2]
[377953636,1754626273246,-400.0,0.00019709,2]
[377953637,1754626273256,-835.79,0.00019709,2]
[377953638,1754626273265,-1120.32,0.00019709,2]
[377953639,1754626273275,-786.29,0.00019709,2]
[377953640,1754626273285,-693.04,0.00019709,2]
[377953641,1754626273295,-667.91,0.00019709,2]
[377953642,1754626273304,-400.0,0.00019709,2]
[377953643,1754626273314,-1412.23,0.00019709,2]
[377953644,1754626273324,-865.97,0.00019709,2]
[377953645,1754626273334,-400.0,0.00019709,2]
[377953646,1754626273537,-621.57,0.00019709,2]
[377953647,1754626273547,-840.55,0.00019709,2]
[377953648,1754626273557,-510.18921481,0.00019709,2]
[377953649,1754626273566,-731.02,0.00019709,2]
[377953650,1754626273576,-737.45,0.00019709,2]
[377953651,1754626273586,-1197.49,0.00019709,2]
[377953652,1754626273595,-400.0,0.00019709,2]
[377953653,1754626273605,-400.0,0.00019709,2]
[377953654,1754626273614,-1569.41,0.00019709,2]
[377953655,1754626273624,-400.0,0.00019709,2]
[377953656,1754626273634,-400.0,0.00019709,2]
[377953657,1754626273643,-407.11,0.00019709,2]
[377953658,1754626273653,-400.0,0.00019709,2]
[377953659,1754626273663,-400.0,0.00019709,2]
[377953660,1754626273672,-400.0,0.00019709,2]
[377953661,1754626273682,-1660.13,0.00019709,2]
[377953662,1754626273692,-1352.21,0.00019709,2]
[377953663,1754626273701,-400.0,0.00019709,2]
[377953664,1754626273711,-1446.46,0.00019709,2]
[377953665,1754626273720,-722.58,0.00019709,2]
[377953666,1754626273730,-446.68,0.00019709,2]
[377953667,1754626273740,-485.66,0.00019709,2]
[377953668,1754626273750,-489.93,0.00019709,2]
[377953669,1754626273760,-400.0,0.00019709,2]
[377953670,1754626273769,-400.0,0.00019709,2]
[377953671,1754626273779,-719.36,0.00019709,2]
[377953672,1754626273788,-400.0,0.00019709,2]
[377953673,1754626273798,-1102.7,0.00019709,2]
[377953674,1754626273808,-400.0,0.00019709,2]
[377953675,1754626273817,-860.35,0.00019709,2]
[377953676,1754626273827,-973.19,0.00019709,2]
[377953677,1754626273836,-772.76,0.00019709,2]
[377953678,1754626273846,-913.18,0.00019709,2]
[377953679,1754626273856,-1201.92,0.00019709,2]
[377953680,1754626273869,-684.27,0.00019709,2]
[377953681,1754626273879,-730.49,0.00019709,2]
[377953682,1754626273888,-1024.93,0.00019709,2]
[377953683,1754626273898,-400.0,0.00019709,2]
[377953684,1754626273909,-400.0,0.00019709,2]
[377953685,1754626273922,-400.0,0.00019709,2]
[377953686,1754626273932,-400.0,0.00019709,2]
[377953687,1754626273941,-400.0,0.00019709,2]
[377953688,1754626273952,-1040.58,0.00019709,2]
[377953689,1754626273962,-1036.9,0.00019709,2]
[377953690,1754626273972,-689.6,0.00019709,2]
[377953691,1754626273982,-637.5,0.00019709,2]
[377953692,1754626273991,-400.0,0.00019709,2]
[377953693,1754626274001,-429.29,0.00019709,2]
[377953694,1754626274011,-400.0,0.00019709,2]
[377953695,1754626274020,-400.0,0.00019709,2]
[377953696,1754626274030,-400.0,0.00019709,2]
[377953697,1754626274039,-638.34,0.00019709,2]
[377953698,1754626274049,-581.07,0.00019709,2]
[377953699,1754626274058,-1201.37,0.00019709,2]
[377953700,1754626274067,-400.0,0.00019709,2]
[377953701,1754626274077,-400.0,0.00019709,2]
[377953702,1754626274086,-530.5,0.00019709,2]
[377953703,1754626274096,-699.28,0.00019709,2]
[377953704,1754626274105,-400.0,0.00019709,2]
[377953705,1754626274115,-424.84,0.00019709,2]
[377953706,1754626274124,-620.58,0.00019709,2]
[377953707,1754626274133,-400.0,0.00019709,2]
[377953708,1754626274142,-868.63,0.00019709,2]